Cogmind - Beta 10.2 @@@ ROGUE MODE // 2020.12.14 @ 14:40:21 Player: Demise Result: Destroyed by P-70 Sage with High-powered Shock Rifle Performance ------------- Evolutions (6) 3000 Regions Visited (21) 4200 Robots Destroyed (183) 915 Value Destroyed (6686) 6686 Prototype IDs (49) 980 Alien Tech Used (0) 0 Bonus (5576) 5576 TOTAL SCORE: 21357 Bonus ------- High Alert Combat Kills 426 Follower Combat Kills 3517 Network Hubs Disabled 200 Met Data Miner 300 Met Warlord at Base 500 MAIN.C Attacked Warlord 500 Built Enhanced Grunts 300 A7 Reached Mainframe 300 Friendly Fire -467 Cogmind --------- Core Integrity 0/1150 Matter 166/300 Energy 99/100 System Corruption 14% Temperature Cool (0) Movement Core (50) Location -4/Factory Parts ------- > --- POWER (2) -------- (None) > --- PROPULSION (6) --- (None) > --- UTILITY (9) ------ (None) > --- WEAPON (2) ------- (None) > --- INVENTORY (4) ---- Light Antimatter Reactor Advanced Variable Charge Gun Guided Missile Launcher Peak State ------------ > --- POWER ------------ Vortex Chain Reactor > --- PROPULSION ------- Nuclear Pulse Array Nuclear Pulse Array Cooled Impulse Thruster Cooled Impulse Thruster > --- UTILITY ---------- Experimental Heat Sink High-capacity Storage Unit Advanced Sensor Array Experimental Phase Shifter Centrium Medium Armor Plating Improved Hacking Suite System Mapper System Shield Drone Bay > --- WEAPON ----------- EMDS > --- INVENTORY -------- Nuclear Pulse Array Experimental Core Analyzer EM Dispersion Field Mapping Drone Bay Advanced Variable Charge Gun Hypervelocity Gauss Rifle Guided Missile Launcher Precision Rocket Launcher Phasing Sabre [Rating: 141] Favorites ----------- Power Light Nuclear Core Engine Light Deuterium Engine Power Core Light Nuclear Core Reactor Vortex Chain Reactor Propulsion Light Treads Treads Light Treads Leg Carbon-fiber Leg Wheel Armored Huge Wheel Flight Unit Cooled Impulse Thruster Utility High-capacity Storage Unit Device Advanced Sensor Array Storage High-capacity Storage Unit Processor Experimental Core Analyzer Hackware System Shield Protection Light Armor Plating Weapon Flak Gun Energy Gun Advanced Variable Charge Gun Energy Cannon Advanced Beam Cannon Ballistic Gun Flak Gun Ballistic Cannon Mini Assault Cannon Launcher Proton Missile Launcher Slashing Weapon Phasing Sabre Piercing Weapon Vortex Lance Build | -11 -10 -9 -9 -8 -7 -7 -7 -7 -6 -6 -6 -6 -6 -6 -5 -5 -5 -4 -4 -4 -4 ------- Run | Scr Mat Mat Sto Mat Fac Low Low Dat Pro Fac Ext Cet Arc Hub Fac Upp War Pro Fac Was Fac Slots Evolved 12 | . . 2 . 2 2 . . . . 2 . . . . 2 . . . 2 . . Power 1 | . . . . . 1 . . . . . . . . . . . . . . . . Propulsion 4 | . . . . 2 . . . . . 2 . . . . . . . . . . . Utility 7 | . . 2 . . 1 . . . . . . . . . 2 . . . 2 . . Weapon . | . . . . . . . . . . . . . . . . . . . . . . Parts Attached 295 | 4 . 4 36 34 37 15 13 . 19 10 17 8 5 17 20 . 20 6 9 2 19 Power 34 | . . 1 2 3 11 1 . . 4 1 . 2 2 . 2 . 1 . . . 4 Engine 15 | . . 1 2 3 6 . . . . . . 2 . . . . . . . . 1 Core 15 | . . . . . 5 1 . . 3 1 . . 2 . 1 . . . . . 2 Reactor 4 | . . . . . . . . . 1 . . . . . 1 . 1 . . . 1 Propulsion 68 | 2 . . 6 17 16 1 . . 2 4 3 1 . 3 6 . 2 . 1 . 4 Treads 49 | 2 . . 6 15 16 . . . 1 2 3 1 . 2 1 . . . . . . Leg 4 | . . . . 2 . . . . 1 . . . . 1 . . . . . . . Wheel 3 | . . . . . . 1 . . . 2 . . . . . . . . . . . Hover . | . . . . . . . . . . . . . . . . . . . . . . Flight 12 | . . . . . . . . . . . . . . . 5 . 2 . 1 . 4 Utility 94 | 1 . 1 12 7 3 10 5 . 8 3 4 2 1 7 7 . 11 2 6 1 3 Device 55 | . . . 9 1 . 7 3 . 4 1 1 . . 6 4 . 10 2 5 1 1 Storage 10 | 1 . . 2 2 . 1 . . . 2 1 . . . 1 . . . . . . Processor 2 | . . . . . . . . . . . . . . . . . . . . . 2 Hackware 6 | . . . . 1 1 . . . . . . . 1 . 2 . 1 . . . . Protection 21 | . . 1 1 3 2 2 2 . 4 . 2 2 . 1 . . . . 1 . . Artifact . | . . . . . . . . . . . . . . . . . . . . . . Weapon 99 | 1 . 2 16 7 7 3 8 . 5 2 10 3 2 7 5 . 6 4 2 1 8 Energy Gun 19 | 1 . 2 5 2 . . . . . . . 1 1 2 1 . 1 . 1 . 2 Energy Cannon 17 | . . . 6 . . . . . . . 1 1 . 1 2 . 3 2 . . 1 Ballistic Gun 35 | . . . 2 4 6 2 5 . 2 2 6 1 . 2 1 . . . 1 . 1 Ballistic Cannon 1 | . . . 1 . . . . . . . . . . . . . . . . . . Launcher 19 | . . . 2 1 . 1 3 . 3 . 1 . . 2 1 . 1 2 . 1 1 Special Weapon . | . . . . . . . . . . . . . . . . . . . . . . Impact Weapon . | . . . . . . . . . . . . . . . . . . . . . . Slashing Weapon 7 | . . . . . 1 . . . . . 2 . 1 . . . . . . . 3 Piercing Weapon 1 | . . . . . . . . . . . . . . . . . 1 . . . . Special Melee Weapon . | . . . . . . . . . . . . . . . . . . . . . . Unidentified Prototypes 36 | . . . 7 1 2 . . . 2 . 1 3 . 7 1 . 11 . . . 1 Parts Lost 40 | . . 1 1 3 2 1 . . 2 . 1 . . 3 . . . 3 . . 23 Power 7 | . . . . . 1 1 . . 1 . . . . 1 . . . . . . 3 Propulsion 15 | . . . . 3 1 . . . . . 1 . . 1 . . . 1 . . 8 Utility 12 | . . . 1 . . . . . 1 . . . . . . . . 2 . . 8 Weapon 6 | . . 1 . . . . . . . . . . . 1 . . . . . . 4 Highest Loss Streak 8 | . . 1 1 2 1 1 . . 2 . 1 . . 1 . . . 1 . . 8 Average Slot Usage (%) 87 | . 100 84 92 97 98 93 83 84 83 88 91 87 86 83 85 88 84 71 68 73 61 Engine 5 | . 14 11 11 8 9 7 7 7 . . . 4 3 . . . . . . . . Core 4 | . . . . . 4 5 7 7 11 13 13 7 9 13 4 5 2 . . . . Reactor 1 | . . . . . . . . . 1 . . . . . 4 5 5 5 5 5 2 Treads 18 | . 28 22 22 33 29 26 15 15 14 21 24 21 20 18 3 . . . . . . Wheel 2 | . . . . . . 1 7 7 7 7 6 6 6 6 1 . . . . . . Flight 5 | . . . . . . . . . . . . . . . 22 29 28 24 21 21 16 Device 6 | . . . 10 2 . 6 6 7 5 5 3 . . 4 9 11 7 5 14 26 15 Storage 12 | . 28 22 18 17 15 12 7 7 7 11 13 13 13 13 6 5 5 5 5 5 3 Hackware 12 | . . . . 7 14 15 15 15 15 13 13 13 13 13 20 23 26 21 15 15 13 Protection 3 | . . 9 9 7 7 . . . . . 2 5 6 1 . . . . 1 . . Energy Gun 3 | . 28 20 6 7 . . . . . . . 4 9 7 1 . . . . . . Energy Cannon 2 | . . . 12 . . . . . . . . 5 1 . 2 5 4 4 4 . . Ballistic Gun 6 | . . . . 10 14 13 14 15 12 13 12 1 . 1 1 . . . . . . Naked Turns 64 | . . . . . . . . . . . . . . . . . . . . . 64 Heaviest Build 130 | 17 17 22 59 88 99 130 106 99 120 130 91 101 100 97 110 78 88 91 103 79 89 Greatest Support 96 | 40 40 40 40 80 96 96 28 28 28 56 60 28 28 28 46 46 56 56 62 62 62 Greatest Overweight (x) 36 | . . . 1 4 1 3 3 3 36 4 4 4 3 4 3 1 1 1 1 1 13 Average Overweight (x) 1 | . . . . . . . 3 3 3 1 1 3 3 2 1 1 . 1 1 1 . Largest Inventory Capacity 32 | 8 8 8 16 20 20 32 24 24 24 32 20 20 20 20 20 12 12 12 12 12 12 Average Capacity 16 | 7 8 8 10 18 20 21 24 24 24 20 20 20 20 20 13 12 12 12 12 12 9 Most Carried 26 | 8 7 8 16 20 20 24 24 24 24 26 20 20 20 20 20 12 12 12 12 12 12 Average Carried 16 | 5 5 7 9 17 19 20 23 24 23 20 19 19 19 19 13 12 11 11 11 11 7 Final Capacity 24 | 8 8 8 16 20 20 24 24 24 24 20 20 20 20 20 12 12 12 12 12 12 4 Final Carried 24 | 4 7 7 16 20 20 24 24 24 24 20 20 20 20 20 12 12 12 12 11 12 4 Class Distribution -------------------- 35% | Hacker-Mutant 22% | Scavenger-Mutant 19% | Hauler-Mutant 15% | Mutant 3% | Wizard-Mutant 3% | Commander-Mutant Dominant Class ---------------- Mutant | -10/Materials Mutant | -9/Materials Mutant | -9/Storage Hauler-Mutant | -8/Materials Scavenger-Mutant | -7/Factory Hacker-Mutant | -7/Lower Caves Hauler-Mutant | -7/Lower Caves Hauler-Mutant | -7/Data Miner Hauler-Mutant | -6/Proximity Caves Hacker-Mutant | -6/Factory Hacker-Mutant | -6/Extension Scavenger-Mutant | -6/Cetus Scavenger-Mutant | -6/Archives Scavenger-Mutant | -6/Hub_04(d) Hacker-Mutant | -5/Factory Hacker-Mutant | -5/Upper Caves Wizard-Mutant | -5/Warlord Hacker-Mutant | -4/Proximity Caves Hacker-Mutant | -4/Factory Hacker-Mutant | -4/Waste Hacker-Mutant | -4/Factory Resources | -11 -10 -9 -9 -8 -7 -7 -7 -7 -6 -6 -6 -6 -6 -6 -5 -5 -5 -4 -4 -4 -4 ----------- Run | Scr Mat Mat Sto Mat Fac Low Low Dat Pro Fac Ext Cet Arc Hub Fac Upp War Pro Fac Was Fac Matter Collected 5757 | 240 . 40 381 855 1090 216 260 . 459 . 444 115 50 243 440 20 110 233 81 . 480 Remotely . | . . . . . . . . . . . . . . . . . . . . . . Salvage Created 8188 | 93 278 384 1155 1589 1092 119 344 . 435 . 436 99 77 377 752 85 . 222 136 . 515 Parts 434 | 4 17 29 61 103 64 11 16 . 18 . 19 7 7 10 29 1 . 7 12 . 19 Haulers Intercepted 17 | . . . 6 2 3 . . . . . 1 . . 3 2 . . . . . . Recyclers Shooed 3 | . . . . 2 1 . . . . . . . . . . . . . . . . Parts Field Recycled 16 | . . . . . . 16 . . . . . . . . . . . . . . . Retrieved Matter 229 | . . . . . . 229 . . . . . . . . . . . . . . . Parts Self-Destructed 128 | . . . . . . 12 9 . 12 . . . . . . . 92 3 . . . Prevented 19 | . . . . . . 2 5 . 3 . . . . . . . 5 4 . . . Kills | -11 -10 -9 -9 -8 -7 -7 -7 -7 -6 -6 -6 -6 -6 -6 -5 -5 -5 -4 -4 -4 -4 ------- Run | Scr Mat Mat Sto Mat Fac Low Low Dat Pro Fac Ext Cet Arc Hub Fac Upp War Pro Fac Was Fac Combat Hostiles Destroyed 133 | . 5 7 18 30 16 2 11 . 11 . 4 2 . 1 7 . . 9 2 . 8 Melee 3 | . . . . . . . . . . . . . . . . . . . . . 3 Guns 67 | . 4 6 2 27 16 1 1 . 3 . 4 . . 1 1 . . . 1 . . Cannons 18 | . . . 12 . . . . . . . . 2 . . 2 . . 1 1 . . AOE 40 | . 1 1 4 3 . 1 10 . 8 . . . . . 1 . . 6 . . 5 Classes Destroyed 15 | 1 3 3 2 3 1 1 . . . . 1 . . . . . . . . . . Worker 4 | . . . . 4 . . . . . . . . . . . . . . . . . Builder 8 | . . 1 . 4 1 . . . . . . . . . 1 . . . . . 1 Hauler 17 | . . . 6 2 3 . . . . . 1 . . 3 2 . . . . . . Recycler 5 | 1 1 . 1 . . . . . . . 1 . . . . . . . . . 1 Operator 7 | . 2 . 1 1 . . . . . . . . 2 1 . . . . . . . Watcher 7 | . . 1 2 1 1 . . . . . . 1 . . 1 . . . . . . Swarmer 34 | . 3 . 4 8 . . 7 . 4 . . 1 . . . . . 5 . . 2 Grunt 55 | . 2 6 9 12 10 . 3 . 4 . 1 1 . . 2 . . 1 . . 4 Brawler 2 | . . . 1 . . . . . . . . . . . 1 . . . . . . Duelist 2 | . . . . 1 1 . . . . . . . . . . . . . . . . Sentry 24 | . . 1 4 7 4 . 1 . 1 . 1 . . . 3 . . 1 1 . . Demolisher 1 | . . . . . . . . . . . 1 . . . . . . . . . . Hunter 9 | . . . . 2 . 1 . . 2 . . . . . . . . 2 . . 2 Programmer 4 | . . . . . 1 . . . . . . . . . 1 . . . 1 . 1 Behemoth 2 | . . . . . . 1 . . . . 1 . . . . . . . . . . Lightning 1 | . . . . . . . . . . . . . . 1 . . . . . . . Decomposer 1 | . . . . . . 1 . . . . . . . . . . . . . . . Packrat 1 | . . . . . . . . . . . . . . . . 1 . . . . . Thug 1 | . . . . 1 . . . . . . . . . . . . . . . . . Best Kill Streak 7 | 1 4 4 4 7 5 1 4 . 4 . 1 3 2 3 3 . . 4 1 . 3 Combat Bots Only 4 | . 3 4 4 4 4 1 4 . 4 . 1 2 . 1 3 . . 4 1 . 3 Max Kills in Single Turn 5 | 1 2 1 3 5 2 1 2 . 2 . 1 1 1 1 1 1 . 2 1 . 2 Gunslinging 1 | . . . . 1 . . . . . . . . . . . . . . . . . Exploded 3 | . 1 1 3 3 . 1 2 . 2 . . . . . 1 . . 2 . . 2 Melee 1 | . . . . . . . . . . . . . . . . . . . . . 1 Uniques/NPCs Destroyed . | . . . . . . . . . . . . . . . . . . . . . . Combat | -11 -10 -9 -9 -8 -7 -7 -7 -7 -6 -6 -6 -6 -6 -6 -5 -5 -5 -4 -4 -4 -4 -------- Run | Scr Mat Mat Sto Mat Fac Low Low Dat Pro Fac Ext Cet Arc Hub Fac Upp War Pro Fac Was Fac Damage Taken 11138 | . 132 432 579 1580 1381 327 314 . 853 . 711 72 166 748 190 . . 426 185 . 3042 Core 1876 | . 26 42 37 81 151 87 28 . 29 . 20 . 24 116 19 . . 51 . . 1165 Absorbed by Shields 132 | . . . . . . . . . . . 119 13 . . . . . . . . . Core Remaining (%) 83 | 100 89 . 80 85 . . . . 57 . . . . 81 . . . 93 . . . Volleys Fired 451 | 3 13 26 57 72 54 8 14 . 28 . 26 7 4 29 39 2 1 27 9 4 28 Largest 2 | 2 2 2 2 2 2 2 2 . 2 . 2 2 2 2 1 1 1 1 2 1 2 Hottest 170 | 90 80 90 136 90 56 56 56 . 56 . 61 123 170 160 80 70 70 70 113 39 80 Shots Fired 738 | 6 26 46 106 143 106 13 16 . 48 . 41 13 7 47 39 2 1 27 15 4 32 Gun 567 | 6 26 46 35 142 106 10 4 . 40 . 41 7 3 47 17 . . . 13 . 24 Cannon 118 | . . . 68 . . . . . . . . 6 4 . 21 2 1 12 2 . 2 Launcher 53 | . . . 3 1 . 3 12 . 8 . . . . . 1 . . 15 . 4 6 Special . | . . . . . . . . . . . . . . . . . . . . . . Kinetic 360 | . . . 3 106 106 10 4 . 40 . 41 7 . 15 . . . . 7 . 21 Thermal 151 | 3 . 7 70 . . . . . . . . 6 7 32 17 . . . 6 . 3 Explosive 41 | . . . 3 . . 3 5 . 4 . . . . . 1 . . 15 . 4 6 Electromagnetic 186 | 3 26 39 30 37 . . 7 . 4 . . . . . 21 2 1 12 2 . 2 Robot Hit Streak 22 | 6 7 7 15 13 22 11 11 . 18 . 21 6 2 5 8 3 4 5 4 . 6 Robot Miss Streak 9 | . 4 3 3 9 5 3 1 . 6 . 3 2 3 5 3 . . 2 2 . 2 Penetration Max 1 | . . . . . . . . . . . . . . 1 . 1 . . . . 1 Secondary Targets 10 | . 1 1 . 5 1 . . . . . 2 . . . . . . . . . . Max Gunslinging Chain 1 | . 1 1 . 1 1 . . . . . 1 . . . . . . . . . . Shots Hit Robots 564 | 6 13 31 73 131 98 9 9 . 41 . 43 6 5 21 23 2 1 9 9 . 34 Core Hits 497 | 2 12 15 35 133 108 10 22 . 45 . 41 5 4 7 11 1 . 12 4 . 30 Critical Hits 20 | . . . 5 . . . . . . . 3 . . . 4 1 1 . 2 . 4 Critical Kills 5 | . . . 2 . . . . . . . 1 . . . 1 . . . 1 . . Critical Parts Destroyed 13 | . . . 3 . . . . . . . 2 . . . 3 . . . 1 . 4 Melee Attacks 48 | . . . . . 1 . . . . . 9 . 2 4 . . . . . . 32 Impact . | . . . . . . . . . . . . . . . . . . . . . . Slashing 48 | . . . . . 1 . . . . . 9 . 2 4 . . . . . . 32 Piercing . | . . . . . . . . . . . . . . . . . . . . . . Sneak Attacks 9 | . . . . . . . . . . . 2 . 2 3 . . . . . . 2 Combat Hostiles . | . . . . . . . . . . . . . . . . . . . . . . Follow-up Attacks 2 | . . . . . . . . . . . . . . . . . . . . . 2 Damage Inflicted 18143 | 76 435 492 1441 3069 1699 266 1036 . 1164 . 1168 172 519 775 1259 263 42 1265 233 410 2359 Guns 7395 | 76 217 444 297 2211 1689 113 99 . 420 . 726 26 77 329 372 . . . 188 . 111 Cannons 2778 | . . . 939 . . . . . . . . 146 112 . 831 263 42 400 45 . . Explosions 5636 | . 218 48 161 843 . 153 937 . 744 . . . . . 56 . . 857 . 410 1209 Melee 2195 | . . . . . . . . . . . 417 . 330 433 . . . . . . 1015 Ramming 139 | . . . 44 15 10 . . . . . 25 . . 13 . . . 8 . . 24 Kinetic 5120 | . . . 31 1839 1689 113 99 . 420 . 726 26 . 45 . . . . 21 . 111 Thermal 3134 | 37 110 74 964 650 . . 49 . 92 . . 146 189 284 372 . . . 167 . . Explosive 3813 | . . . 161 . . 153 485 . 482 . . . . . 56 . . 857 . 410 1209 Electromagnetic 3742 | 39 325 418 241 565 . . 403 . 170 . . . . . 831 263 42 400 45 . . Impact . | . . . . . . . . . . . . . . . . . . . . . . Slashing 2195 | . . . . . . . . . . . 417 . 330 433 . . . . . . 1015 Piercing . | . . . . . . . . . . . . . . . . . . . . . . Highest Corruption 14 | . . . . . . . . . . . 2 2 2 9 1 1 1 . . . 14 Average Corruption 2 | . . . . . . . . . . . 1 2 2 4 1 1 1 . . . 4 Corruption Purged . | . . . . . . . . . . . . . . . . . . . . . . Effects 47 | . . . . . . . . . . . 4 6 2 21 3 . . . . . 11 Message Errors 14 | . . . . . . . . . . . 1 2 . 5 2 . . . . . 4 Matter Fused 6 | . . . . . . . . . . . . . . 3 . . . . . . 3 Heat Flow Errors 4 | . . . . . . . . . . . 1 . 1 2 . . . . . . . Energy Discharges 6 | . . . . . . . . . . . . 3 . 3 . . . . . . . Data Loss (minor) 8 | . . . . . . . . . . . 2 . . 5 . . . . . . 1 Misfires 1 | . . . . . . . . . . . . . . 1 . . . . . . . Misdirections 3 | . . . . . . . . . . . . . . . . . . . . . 3 Targeting Errors 5 | . . . . . . . . . . . . 1 1 2 1 . . . . . . Overload Shots . | . . . . . . . . . . . . . . . . . . . . . . Overflow Damage 758 | . . . 13 162 . . 16 . 27 . . . . 125 16 111 . 58 . . 230 Projectiles 140 | . . . 13 . . . . . . . . . . . 16 111 . . . . . Explosions 324 | . . . . 162 . . 16 . 27 . . . . . . . . 58 . . 61 Melee 294 | . . . . . . . . . . . . . . 125 . . . . . . 169 Knockbacks 1 | . . . 1 . . . . . . . . . . . . . . . . . . Impact 1 | . . . 1 . . . . . . . . . . . . . . . . . . Kinetic . | . . . . . . . . . . . . . . . . . . . . . . Secondary . | . . . . . . . . . . . . . . . . . . . . . . Self-Inflicted Damage 115 | . . 21 . 40 . . . . 21 . 12 . . 6 . . . 4 . . 11 Shots 4 | . . 1 . 1 . . . . 2 . . . . . . . . . . . . Rammed 20 | . . . 5 2 1 . . . . . 4 . . 1 . . . 1 . . 6 Targets Rammed 21 | . . . 6 2 1 . . . . . 4 . . 1 . . . 1 . . 6 Kicked . | . . . . . . . . . . . . . . . . . . . . . . Crushed 1 | . . . 1 . . . . . . . . . . . . . . . . . . Highest Temperature 419 | 90 132 233 336 120 64 . 24 . 36 . 236 120 225 419 36 . . 120 28 . . Average Temperature 68 | 41 52 68 81 22 19 . 11 . 17 . 73 51 101 145 16 . . 40 14 . . Received Heat Transfer 1780 | . 24 222 207 441 447 12 30 . 51 . 130 . 27 39 18 . . 18 18 . 96 Effects 10 | . . . 4 . . . . . . . . . . 6 . . . . . . . Energy Bleed 4 | . . . 2 . . . . . . . . . . 2 . . . . . . . Interference 6 | . . . 2 . . . . . . . . . . 4 . . . . . . . Siege Activations . | . . . . . . . . . . . . . . . . . . . . . . Robots Corrupted 6 | . . . . . . . . . . . . . . . 4 . . 2 . . . Combat Hostiles 5 | . . . . . . . . . . . . . . . 3 . . 2 . . . Parts Fried 20 | . 1 2 1 3 . . 2 . . . . . . . 7 . . 4 . . . Impact Corruptions . | . . . . . . . . . . . . . . . . . . . . . . Robots Melted . | . . . . . . . . . . . . . . . . . . . . . . Combat Hostiles . | . . . . . . . . . . . . . . . . . . . . . . Parts Melted 3 | . . . 2 . . . . . . . . . . . 1 . . . . . . Heat Transferred 4090 | 111 150 124 1776 600 . . 50 . 50 . . 100 186 351 407 . . . 185 . . Parts Sabotaged . | . . . . . . . . . . . . . . . . . . . . . . Parts Stolen . | . . . . . . . . . . . . . . . . . . . . . . Parts Stripped . | . . . . . . . . . . . . . . . . . . . . . . Power Chain Reactions 6 | . 2 1 . 1 . . 1 . 1 . . . . . . . . . . . . Missiles Intercepted . | . . . . . . . . . . . . . . . . . . . . . . Alert | -11 -10 -9 -9 -8 -7 -7 -7 -7 -6 -6 -6 -6 -6 -6 -5 -5 -5 -4 -4 -4 -4 ------- Run | Scr Mat Mat Sto Mat Fac Low Low Dat Pro Fac Ext Cet Arc Hub Fac Upp War Pro Fac Was Fac Peak Influence 1229 | 5 188 316 347 692 392 . . . . 440 1229 1074 649 1025 721 . . . 118 46 418 Initial 688 | . 3 79 133 146 314 . . . . . 117 688 429 226 452 . . . . 11 25 Average 308 | 4 92 194 90 286 258 . . . . 212 553 951 602 755 580 . . . 45 28 192 Maximum Alert Level 4 | . . 1 1 2 1 . . . . 2 4 3 2 3 3 . . . . . 2 Low Security (%) 48 | 100 100 50 96 39 18 . . . . 48 13 . . . . . . . 100 100 61 Level 1 24 | . . 49 3 36 81 . . . . 2 37 . . 9 . . . . . . 32 Level 2 15 | . . . . 24 . . . . . 49 13 13 100 22 86 . . . . . 6 Level 3 10 | . . . . . . . . . . . 18 86 . 67 13 . . . . . . Level 4 1 | . . . . . . . . . . . 15 . . . . . . . . . . Level 5 . | . . . . . . . . . . . . . . . . . . . . . . High Security . | . . . . . . . . . . . . . . . . . . . . . . Max Security . | . . . . . . . . . . . . . . . . . . . . . . Squads Dispatched 46 | . 1 2 6 5 3 . . . . 2 9 . . 5 3 . . . 1 . 9 Investigation 14 | . . 2 2 2 1 . . . . . 3 . . 1 2 . . . . . 1 Extermination 5 | . . . . . 1 . . . . . . . . 1 1 . . . 1 . 1 Reinforcement 15 | . 1 . 2 2 1 . . . . 1 3 . . 3 . . . . . . 2 Assault 7 | . . . 2 1 . . . . . 1 3 . . . . . . . . . . Garrison 5 | . . . . . . . . . . . . . . . . . . . . . 5 Intercept . | . . . . . . . . . . . . . . . . . . . . . . Construction Impeded 3 | . . . . 1 . . . . . . 1 . . . . . . . . . 1 Haulers Reinforced 1 | . . . . . . . . . . . . . . 1 . . . . . . . Stealth | -11 -10 -9 -9 -8 -7 -7 -7 -7 -6 -6 -6 -6 -6 -6 -5 -5 -5 -4 -4 -4 -4 --------- Run | Scr Mat Mat Sto Mat Fac Low Low Dat Pro Fac Ext Cet Arc Hub Fac Upp War Pro Fac Was Fac Distress Signals 17 | . 1 1 2 8 1 . . . . . 2 1 1 . . . . . . . . Communications Jammed . | . . . . . . . . . . . . . . . . . . . . . . Distress Signals . | . . . . . . . . . . . . . . . . . . . . . . Times Spotted 304 | . 9 12 36 42 23 3 10 . 10 1 57 13 3 17 8 . 9 9 5 6 31 Peak Tracking Total 14 | . 4 4 5 6 4 1 4 . 4 3 14 5 2 8 3 . 7 4 3 6 12 Tactical Retreats 15 | . . 1 . 2 1 1 1 . . . 2 . . . 3 . 1 1 . . 2 Traps | -11 -10 -9 -9 -8 -7 -7 -7 -7 -6 -6 -6 -6 -6 -6 -5 -5 -5 -4 -4 -4 -4 ------- Run | Scr Mat Mat Sto Mat Fac Low Low Dat Pro Fac Ext Cet Arc Hub Fac Upp War Pro Fac Was Fac Traps Triggered 12 | . . . 1 2 1 . . . . . 3 . . 1 1 . . . 1 . 2 Indirectly . | . . . . . . . . . . . . . . . . . . . . . . Trap Hack Attempts . | . . . . . . . . . . . . . . . . . . . . . . Triggered . | . . . . . . . . . . . . . . . . . . . . . . Disarmed . | . . . . . . . . . . . . . . . . . . . . . . Reprogrammed . | . . . . . . . . . . . . . . . . . . . . . . Reused . | . . . . . . . . . . . . . . . . . . . . . . Traps Extracted . | . . . . . . . . . . . . . . . . . . . . . . Installed . | . . . . . . . . . . . . . . . . . . . . . . Triggered 12 | . . . . . . 2 . . . . . . . . . . 10 . . . . Machines | -11 -10 -9 -9 -8 -7 -7 -7 -7 -6 -6 -6 -6 -6 -6 -5 -5 -5 -4 -4 -4 -4 ---------- Run | Scr Mat Mat Sto Mat Fac Low Low Dat Pro Fac Ext Cet Arc Hub Fac Upp War Pro Fac Was Fac Machines Disabled 47 | . 3 . 5 3 . . . . . . 6 . 3 21 2 . . . . . 4 Max in Single Turn 2 | . 2 . 1 2 . . . . . . 1 . 1 1 1 . . . . . 2 Garrison Access 2 | . . . . . 1 . . . . . . . . . 1 . . . . . . Network Hub 1 | . . . . . . . . . . . . . . 1 . . . . . . . Machines Sabotaged . | . . . . . . . . . . . . . . . . . . . . . . Garrisons Compromised . | . . . . . . . . . . . . . . . . . . . . . . Overloaded Fab Kills . | . . . . . . . . . . . . . . . . . . . . . . Fab Network Shutdowns 1 | . . . . . . . . . . 1 . . . . . . . . . . . Hacking | -11 -10 -9 -9 -8 -7 -7 -7 -7 -6 -6 -6 -6 -6 -6 -5 -5 -5 -4 -4 -4 -4 --------- Run | Scr Mat Mat Sto Mat Fac Low Low Dat Pro Fac Ext Cet Arc Hub Fac Upp War Pro Fac Was Fac Machines Accessed 67 | . 2 2 9 4 7 1 . 4 . 3 4 3 . 6 3 . 7 . 5 . 7 Terminals 35 | . 2 1 8 3 1 . . . . . 4 3 . 6 . . . . 4 . 3 Fabricators 2 | . . . . . . . . . . 1 . . . . . . . . . . 1 Repair Stations 7 | . . 1 . 1 2 . . . . 1 . . . . 1 . . . 1 . . Recycling Units 5 | . . . . . 2 . . . . 1 . . . . 1 . . . . . 1 Scanalyzers 2 | . . . . . 1 . . . . . . . . . . . . . . . 1 Garrison Access 4 | . . . 1 . 1 . . . . . . . . . 1 . . . . . 1 Total Hacks 242 | . 5 8 19 11 21 1 . 29 . 9 13 11 . 23 12 . 17 . 29 . 34 Successful 148 | . 2 3 9 4 17 1 . 29 . 6 4 6 . 9 7 . 17 . 15 . 19 Failed 94 | . 3 5 10 7 4 . . . . 3 9 5 . 14 5 . . . 14 . 15 Catastrophic 19 | . . 1 2 2 . . . . . . 3 1 . 3 . . . . 5 . 2 Database Lockouts . | . . . . . . . . . . . . . . . . . . . . . . Manual 102 | . 5 5 11 5 2 . . . . . 10 5 1 20 2 . 1 . 19 . 16 Terminals 117 | . 5 5 17 7 2 . . . . . 13 11 . 23 . . . . 22 . 12 Fabricators 11 | . . . . . . . . . . 3 . . . . . . . . . . 8 Repair Stations 36 | . . 3 . 4 11 . . . . 3 . . . . 8 . . . 7 . . Recycling Units 13 | . . . . . 5 . . . . 3 . . . . 3 . . . . . 2 Scanalyzers 12 | . . . . . 2 . . . . . . . . . . . . . . . 10 Garrison Access 6 | . . . 2 . 1 . . . . . . . . . 1 . . . . . 2 Terminal Hacks 74 | . . . 7 . . 1 . 29 . . 3 6 . 5 . . 17 . 5 . 1 Record 33 | . . . . . . . . 11 . . 1 5 . . . . 16 . . . . Part Schematic 9 | . . . . . . . . 8 . . . . . . . . . . 1 . . Robot Schematic 7 | . . . . . . . . 7 . . . . . . . . . . . . . Prototype ID Bank 4 | . . . . . . . . 3 . . 1 . . . . . . . . . . Open Door 8 | . . . 5 . . 1 . . . . . 1 . . . . 1 . . . . Level Access Points 1 | . . . 1 . . . . . . . . . . . . . . . . . . Branch Access Points 1 | . . . . . . . . . . . . . . . . . . . 1 . . Terminal Index 2 | . . . . . . . . . . . . . . 1 . . . . . . 1 Fabricator Index 1 | . . . . . . . . . . . . . . . . . . . 1 . . Alert Level 1 | . . . . . . . . . . . . . . 1 . . . . . . . Unreport Threat 3 | . . . . . . . . . . . . . . 3 . . . . . . . Locate Traps 2 | . . . 1 . . . . . . . . . . . . . . . 1 . . Security Status 1 | . . . . . . . . . . . . . . . . . . . 1 . . Recall Reinforcements 1 | . . . . . . . . . . . 1 . . . . . . . . . . Fabricator Hacks 6 | . . . . . . . . . . 2 . . . . . . . . . . 4 Network Status 2 | . . . . . . . . . . . . . . . . . . . . . 2 Load Schematic 2 | . . . . . . . . . . 1 . . . . . . . . . . 1 Build 2 | . . . . . . . . . . 1 . . . . . . . . . . 1 Repair Station Hacks 28 | . . 2 . 4 10 . . . . 2 . . . . 4 . . . 6 . . Scan Component 15 | . . 1 . 2 5 . . . . 1 . . . . 3 . . . 3 . . Repair 13 | . . 1 . 2 5 . . . . 1 . . . . 1 . . . 3 . . Recycling Unit Hacks 8 | . . . . . 3 . . . . 2 . . . . 1 . . . . . 2 Report Inventory 4 | . . . . . 1 . . . . 1 . . . . 1 . . . . . 1 Retrieve Components 4 | . . . . . 2 . . . . 1 . . . . . . . . . . 1 Scanalyzer 10 | . . . . . 2 . . . . . . . . . . . . . . . 8 Insert Component 5 | . . . . . 1 . . . . . . . . . . . . . . . 4 Analyze 5 | . . . . . 1 . . . . . . . . . . . . . . . 4 Garrison Access Hacks 2 | . . . . . 1 . . . . . . . . . 1 . . . . . . Seal Access 2 | . . . . . 1 . . . . . . . . . 1 . . . . . . Unauthorized Hacks 20 | . 2 1 2 . 1 . . . . . 1 . . 4 1 . . . 4 . 4 Terminals 16 | . 2 1 2 . 1 . . . . . 1 . . 4 . . . . 4 . 1 Track 3 | . . . . . . . . . . . . . . 2 . . . . 1 . . Assimilate 1 | . . . . . . . . . . . . . . 1 . . . . . . . Botnet 9 | . 2 1 1 . 1 . . . . . 1 . . . . . . . 2 . 1 Operators 3 | . . . 1 . . . . . . . . . . 1 . . . . 1 . . Fabricators 2 | . . . . . . . . . . . . . . . . . . . . . 2 Siphon 1 | . . . . . . . . . . . . . . . . . . . . . 1 Haulers 1 | . . . . . . . . . . . . . . . . . . . . . 1 Repair Stations . | . . . . . . . . . . . . . . . . . . . . . . Recycling Units 1 | . . . . . . . . . . . . . . . 1 . . . . . . Mask 1 | . . . . . . . . . . . . . . . 1 . . . . . . Scanalyzers . | . . . . . . . . . . . . . . . . . . . . . . Garrison Access 1 | . . . . . . . . . . . . . . . . . . . . . 1 Reprogram 1 | . . . . . . . . . . . . . . . . . . . . . 1 Data Cores Recovered . | . . . . . . . . . . . . . . . . . . . . . . Used . | . . . . . . . . . . . . . . . . . . . . . . Hacking Detections 43 | . 2 2 5 4 4 . . . . 3 4 3 . 6 1 . . . 4 . 5 Full Trace Events 9 | . . 2 2 1 . . . . . . 2 . . . 1 . . . . . 1 Feedback Events 2 | . . . . . . . . . . . 2 . . . . . . . . . . Corruption 2 | . . . . . . . . . . . 2 . . . . . . . . . . Feedback Blocked . | . . . . . . . . . . . . . . . . . . . . . . Robot Schematics Acquired 7 | . . . . . . . . 7 . . . . . . . . . . . . . Robots Built . | . . . . . . . . . . . . . . . . . . . . . . Matter . | . . . . . . . . . . . . . . . . . . . . . . Time . | . . . . . . . . . . . . . . . . . . . . . . Total Robot Build Rating . | . . . . . . . . . . . . . . . . . . . . . . Part Schematics Acquired 13 | . . . . . 1 . . 8 . . . . . . . . . . 1 . 3 Parts Built 3 | . . . . . . . . . . 1 . . . . . . . . . . 2 Matter 345 | . . . . . . . . . . 186 . . . . . . . . . . 159 Time 152 | . . . . . . . . . . 99 . . . . . . . . . . 53 Total Part Build Rating 14 | . . . . . . . . . . 2 . . . . . . . . . . 12 Parts Repaired 12 | . . 1 . 2 5 . . . . 1 . . . . 1 . . . 2 . . Time 603 | . . 26 . 77 183 . . . . 22 . . . . 18 . . . 277 . . Parts Recycled . | . . . . . . . . . . . . . . . . . . . . . . Recycled Matter . | . . . . . . . . . . . . . . . . . . . . . . Retrieved Matter . | . . . . . . . . . . . . . . . . . . . . . . Retrieved Components 16 | . . . . . 5 . . . . 3 . . . . . . . . . . 8 Parts Scanalyzed 5 | . . . . . 1 . . . . . . . . . . . . . . . 4 Part Schematics Acquired 4 | . . . . . 1 . . . . . . . . . . . . . . . 3 Parts Damaged 1 | . . . . . 1 . . . . . . . . . . . . . . . . Bothacking | -11 -10 -9 -9 -8 -7 -7 -7 -7 -6 -6 -6 -6 -6 -6 -5 -5 -5 -4 -4 -4 -4 ------------ Run | Scr Mat Mat Sto Mat Fac Low Low Dat Pro Fac Ext Cet Arc Hub Fac Upp War Pro Fac Was Fac Used RIF Installer . | . . . . . . . . . . . . . . . . . . . . . . Robots Hacked . | . . . . . . . . . . . . . . . . . . . . . . Non-combat . | . . . . . . . . . . . . . . . . . . . . . . Combat . | . . . . . . . . . . . . . . . . . . . . . . Robot Hacks Applied . | . . . . . . . . . . . . . . . . . . . . . . Relay Couplers Released . | . . . . . . . . . . . . . . . . . . . . . . Robots Rewired 13 | . . . . . . . . . . . 13 . . . . . . . . . . Allies Hacked . | . . . . . . . . . . . . . . . . . . . . . . Hacks Repelled . | . . . . . . . . . . . . . . . . . . . . . . Allies | -11 -10 -9 -9 -8 -7 -7 -7 -7 -6 -6 -6 -6 -6 -6 -5 -5 -5 -4 -4 -4 -4 -------- Run | Scr Mat Mat Sto Mat Fac Low Low Dat Pro Fac Ext Cet Arc Hub Fac Upp War Pro Fac Was Fac Total Allies 44 | . . . 2 . . . . . 1 . 31 5 . 1 . . . . . . 4 Largest Group 22 | . . . 2 2 . . . . 1 . 22 8 8 7 1 . . . . . 4 Highest-Rated Group 789 | . . . 62 62 . . . . 94 . 789 687 687 511 87 . . . . . 185 Highest-Rated Ally 156 | . . . 31 31 . . . . 94 . 156 149 149 94 87 . . . . . 47 Total Orders 45 | . . . 32 1 . . . . . . 2 . 2 4 . . . 1 2 1 . STAY 12 | . . . 7 . . . . . . . 1 . 1 3 . . . . . . . FOLLOW 9 | . . . 6 . . . . . . . 1 . 1 1 . . . . . . . EXPLORE 19 | . . . 14 1 . . . . . . . . . . . . . 1 2 1 . RETURN 5 | . . . 5 . . . . . . . . . . . . . . . . . . Ally Attacks 508 | . . . 38 . . . . . 7 . 227 49 46 81 6 . . . . . 54 Total Damage 14483 | . . . 715 . . . . . 140 . 5235 1259 1720 4004 179 . . . . . 1231 Kills 104 | . . . 8 . . . . . . . 49 10 4 25 1 . . . . . 7 Allies Corrupted 4 | . . . 2 . . . . . . . . . . 1 1 . . . . . . Allies Melted . | . . . . . . . . . . . . . . . . . . . . . . Intel | -11 -10 -9 -9 -8 -7 -7 -7 -7 -6 -6 -6 -6 -6 -6 -5 -5 -5 -4 -4 -4 -4 ------- Run | Scr Mat Mat Sto Mat Fac Low Low Dat Pro Fac Ext Cet Arc Hub Fac Upp War Pro Fac Was Fac Robot Analysis Total . | . . . . . . . . . . . . . . . . . . . . . . Derelict Logs Recovered 6 | . . . . . . 1 . . 3 . . . . . . . . 2 . . . Drone Launches 25 | . . . 19 1 . . . . . . . . . . . . . 1 2 2 . Drone Recoveries 7 | . . . 5 . . . . . . . . . . . . . . . 2 . . Exploration | -11 -10 -9 -9 -8 -7 -7 -7 -7 -6 -6 -6 -6 -6 -6 -5 -5 -5 -4 -4 -4 -4 ------------- Run | Scr Mat Mat Sto Mat Fac Low Low Dat Pro Fac Ext Cet Arc Hub Fac Upp War Pro Fac Was Fac Turns Passed 16797 | 48 295 280 2705 1455 1518 1641 875 106 955 409 1456 307 154 799 683 76 1059 466 655 136 719 Spaces Moved 9524 | 23 158 95 1051 538 641 1001 615 82 622 235 800 182 90 428 514 73 952 386 269 108 661 Core 129 | . . . . . . . . . 1 . . . . . . . . . . . 128 Treads 3521 | 13 158 95 1051 533 641 717 . . . 3 300 9 . 1 . . . . . . . Legs 15 | 10 . . . 5 . . . . . . . . . . . . . . . . . Wheels 3116 | . . . . . . 284 615 82 621 232 500 173 90 427 92 . . . . . . Hover . | . . . . . . . . . . . . . . . . . . . . . . Flight 2743 | . . . . . . . . . . . . . . . 422 73 952 386 269 108 533 Fastest Speed 25 | 120 160 160 160 160 160 130 130 130 130 100 120 130 130 120 99 99 25 99 99 103 34 Average Speed 133 | 142 160 160 169 175 170 152 130 130 132 120 145 135 130 129 104 99 98 99 100 103 76 Slowest Speed 1850 | 160 160 160 180 240 180 180 130 130 1850 240 240 240 130 225 130 99 103 99 103 103 700 Overloaded Moves . | . . . . . . . . . . . . . . . . . . . . . . Propulsion Burnouts . | . . . . . . . . . . . . . . . . . . . . . . Robots Hopped 1 | . . . . . . . . . . . . . . . . . 1 . . . . Cave-ins Triggered 1 | . . . . . . . . . . . . . . . . . . . . . 1 Exploration Rate (%) 50 | 2 34 7 94 43 19 79 71 70 82 6 80 70 80 53 16 19 92 69 13 84 20 Regions Visited 21 Branch Regions 12 Pre-discovered Areas 3 | . . . . . . . . 1 2 . . . . . . . . . . . . Known Exits Taken 1 | . . . 1 . . . . . . . . . . . . . . . . . . Unknown Exits Taken 18 | 1 1 1 . 1 1 1 1 1 1 1 1 1 1 1 1 1 1 1 . . . Scrap Searched 18 | . . . . . . 9 5 . 2 . . . . . . . . 2 . . . Spaces Dug 16 | . . . . . 1 . . . . . 1 . . 5 . . . . . . 9 Terrain Destroyed 368 | . 7 4 8 20 1 15 56 . 24 . 2 1 . 12 30 . . 137 1 19 31 Melee 10 | . . . . . 1 . . . . . 1 . . . . . . . . . 8 Projectile 21 | . . . . . . . . . . . 1 1 . 12 3 . . . 1 . 3 AOE 337 | . 7 4 8 20 . 15 56 . 24 . . . . . 27 . . 137 . 19 20 Terrain Rammed . | . . . . . . . . . . . . . . . . . . . . . . Walls Destroyed . | . . . . . . . . . . . . . . . . . . . . . . Machines Disabled . | . . . . . . . . . . . . . . . . . . . . . . Actions | -11 -10 -9 -9 -8 -7 -7 -7 -7 -6 -6 -6 -6 -6 -6 -5 -5 -5 -4 -4 -4 -4 --------- Run | Scr Mat Mat Sto Mat Fac Low Low Dat Pro Fac Ext Cet Arc Hub Fac Upp War Pro Fac Was Fac Total 12864 | 33 175 177 1879 921 967 1111 670 81 702 366 1041 231 116 620 623 74 1070 444 640 130 793 Wait 2038 | . . 51 659 205 194 44 21 . 16 92 75 23 12 122 34 . 72 18 344 14 42 Move 9502 | 22 157 94 1050 537 640 1000 614 81 621 234 799 181 89 428 513 72 949 385 269 107 660 Hop 1 | . . . . . . . . . . . . . . . . . 1 . . . . Pick Up 146 | . 4 1 22 29 10 24 2 . 5 18 7 4 1 4 4 . 3 2 4 . 2 Fast Attach 111 | 1 . 2 11 15 13 3 2 . 7 3 6 2 1 10 3 . 19 1 3 . 9 Attach 73 | 2 . 1 8 6 5 4 1 . 6 4 1 1 . 1 12 . . 4 6 2 9 Detach 40 | 2 . . 11 2 1 4 1 . 2 1 . . . 3 2 . 1 2 2 3 3 Swap 112 | 1 . 1 17 13 19 8 10 . 6 3 10 5 4 6 5 . 1 1 . . 2 Drop 228 | 2 1 1 31 40 29 16 5 . 11 11 14 8 3 13 11 . 23 3 3 . 3 Fire 451 | 3 13 26 57 72 54 8 14 . 28 . 26 7 4 29 39 2 1 27 9 4 28 Melee 44 | . . . . . 1 . . . . . 9 . 2 4 . . . . . . 28 Ram 11 | . . . . . . . . . . . 4 . . . . . . 1 . . 6 Kick . | . . . . . . . . . . . . . . . . . . . . . . Crush 9 | . . . 6 2 1 . . . . . . . . . . . . . . . . Escape Stasis 11 | . . . . . . . . . . . 10 . . . . . . . . . 1 Rewire 80 | . . . . . . . . . . . 80 . . . . . . . . . . Trap . | . . . . . . . . . . . . . . . . . . . . . . Miscellaneous 7 | . . . 7 . . . . . . . . . . . . . . . . . . Route ------- -11/Scrapyard -10/Materials (discovered 2 exits: *Mat / [*Min]) -9/Materials -9/Storage -8/Materials -7/Factory -7/Lower Caves -7/Lower Caves (discovered 2 exits: *Fac / *Dat) -7/Data Miner -6/Proximity Caves -6/Factory -6/Extension (discovered 2 exits: *Fac / *Cet) -6/Cetus -6/Archives (discovered 3 exits: *Fac / *Hub x2) -6/Hub_04(d) (discovered 3 exits: *Fac x3) -5/Factory (discovered 2 exits: [*Upp x2]) -5/Upper Caves -5/Warlord -4/Proximity Caves -4/Factory (discovered 3 exits: [*Res] / *Upp x2) -4/Waste -4/Factory History --------- Turn | Location | Event 10 | -11/Scrapyard | Discovered new exit (range 3) 49 | -11/Scrapyard | Entered Materials 149 | -10/Materials | Discovered new exit (range 15) 264 | -10/Materials | Discovered new exit (range 10) 312 | -10/Materials | Build established: Mutant 344 | -10/Materials | Entered another Materials area 344 | -9/Materials | Evolved 2 slots: Utility x2 362 | -9/Materials | Discovered new exit (range 13) 450 | -9/Materials | Repaired EM Pulse Gun 624 | -9/Materials | Entered Storage 1045 | -9/Storage | Identified exit to Materials 2016 | -9/Storage | Build established: Scavenger-Mutant 2839 | -9/Storage | Found Prototype Launcher 2839 | -9/Storage | Identified Gui. Missile Launcher 3023 | -9/Storage | Build established: Mutant 3179 | -9/Storage | Met a pair of Derelict thieves 3329 | -9/Storage | Entered Materials 3329 | -8/Materials | Accompanied by 2 allies 3329 | -8/Materials | Evolved 2 slots: Propulsion x2 3737 | -8/Materials | Repaired Hcp. Storage Unit 3817 | -8/Materials | Repaired Imp. EM Shotgun 3895 | -8/Materials | Build established: Scavenger-Mutant 4326 | -8/Materials | Build established: Hauler-Mutant 4529 | -8/Materials | First assault squad dispatched 4759 | -8/Materials | Discovered new exit (range 10) 4784 | -8/Materials | Entered Factory 4784 | -7/Factory | Evolved 2 slots: Power x1, Utility x1 4959 | -7/Factory | Repaired Flak Gun 5004 | -7/Factory | Repaired Flak Gun 5057 | -7/Factory | Repaired Cld. Ion Engine 5517 | -7/Factory | Build established: Scavenger-Mutant 6018 | -7/Factory | Build established: Hacker-Mutant 6055 | -7/Factory | Discovered new exit (range 10) 6193 | -7/Factory | Repaired Med. Treads 6245 | -7/Factory | Repaired Med. Treads 6302 | -7/Factory | Entered Lower Caves 6317 | -7/Lower Caves | Learned Factory machine intel 6703 | -7/Lower Caves | Spotted B-75 Beast 6974 | -7/Lower Caves | Destroyed B-75 Beast 7740 | -7/Lower Caves | Discovered new exit (range 10) 7766 | -7/Lower Caves | Build established: Hauler-Mutant 7943 | -7/Lower Caves | Entered another Lower Caves area 7950 | -7/Lower Caves | Discovered new exit (range 9) 8202 | -7/Lower Caves | Attracted the attention of an 0b10 checkpoint 8779 | -7/Lower Caves | Discovered new exit (range 9) 8818 | -7/Lower Caves | Entered Data Miner 8818 | -7/Data Miner | Discovered new exit (range 6) 8843 | -7/Data Miner | Met Data Miner 8868 | -7/Data Miner | Learned location of Section 7 (-2) 8868 | -7/Data Miner | Acquired the access code to Warlord's prototype stash 8889 | -7/Data Miner | Received God Mode back door access code from Data Miner 8924 | -7/Data Miner | Entered Proximity Caves 8926 | -6/Proximity Caves | Attracted the attention of an 0b10 checkpoint 8970 | -6/Proximity Caves | Escorted by Enhanced Grunt 9045 | -6/Proximity Caves | Found Prototype Device 9045 | -6/Proximity Caves | Identified Exp. Thermal Shield 9518 | -6/Proximity Caves | Learned 4 Factory zone layouts 9806 | -6/Proximity Caves | Discovered new exit (range 16) 9879 | -6/Proximity Caves | Entered Factory 9879 | -6/Factory | Evolved 2 slots: Propulsion x2 9881 | -6/Factory | Loaded intel: 254 machine locations 10044 | -6/Factory | Fabricated Imp. Flight Unit (x1) 10078 | -6/Factory | Local fabrication network quarantined 10168 | -6/Factory | Repaired Proton Missile Launcher 10229 | -6/Factory | First assault squad dispatched 10272 | -6/Factory | Build established: Hacker-Mutant 10278 | -6/Factory | Discovered new exit (range 9) 10288 | -6/Factory | Entered Extension 10325 | -6/Extension | Rescued a captive Derelict 10437 | -6/Extension | Rescued A7 10496 | -6/Extension | Rescued a captive Derelict 10496 | -6/Extension | Rescued a captive Derelict 10533 | -6/Extension | Rescued a captive Derelict 10571 | -6/Extension | Rescued a captive Derelict 10571 | -6/Extension | Rescued a captive Derelict 10626 | -6/Extension | Rescued a captive Derelict 10676 | -6/Extension | Spotted B-75 Beast 10679 | -6/Extension | Spotted B-75 Beast 10689 | -6/Extension | Destroyed B-75 Beast 10705 | -6/Extension | Allies destroyed B-75 Beast 10963 | -6/Extension | Disrupted transfer network 10988 | -6/Extension | Rescued a captive Derelict 10989 | -6/Extension | Rescued a captive Derelict 11002 | -6/Extension | Rescued a captive Derelict 11003 | -6/Extension | Rescued a captive Derelict 11040 | -6/Extension | Rescued a captive Derelict 11040 | -6/Extension | Rescued a captive Derelict 11179 | -6/Extension | Rescued a captive Derelict 11180 | -6/Extension | Rescued a captive Derelict 11338 | -6/Extension | First assault squad dispatched 11403 | -6/Extension | Build established: Commander-Mutant 11407 | -6/Extension | Rescued a captive Derelict 11407 | -6/Extension | Rescued a captive Derelict 11446 | -6/Extension | Discovered new exit (range 10) 11448 | -6/Extension | Discovered new exit (range 6) 11744 | -6/Extension | Entered Cetus 11744 | -6/Cetus | Accompanied by 6 allies (A7) 11749 | -6/Cetus | Acquired a Cetus Manufacturing Module code from A7 11776 | -6/Cetus | Spotted Cetus Guard 11776 | -6/Cetus | Spotted Cetus Guard 11778 | -6/Cetus | Spotted Cetus Guard 11779 | -6/Cetus | Spotted Cetus Guard 11786 | -6/Cetus | Allies destroyed Cetus Guard 11788 | -6/Cetus | Allies destroyed Cetus Guard 11789 | -6/Cetus | Allies destroyed Cetus Guard 11792 | -6/Cetus | Allies destroyed Cetus Guard 11886 | -6/Cetus | Started Cetus Manufacturing Module 11911 | -6/Cetus | Manufactured an Enhanced Grunt 11936 | -6/Cetus | Manufactured an Enhanced Grunt 11953 | -6/Cetus | Escorted A7 to Cetus Mainframe 11961 | -6/Cetus | Manufactured an Enhanced Grunt 11976 | -6/Cetus | Discovered new exit (range 15) 11986 | -6/Cetus | Manufactured an Enhanced Grunt 12011 | -6/Cetus | Manufactured an Enhanced Grunt 12051 | -6/Cetus | Entered Archives 12051 | -6/Archives | Accompanied by 8 allies (A7) 12056 | -6/Archives | Received a hacking code to weaken MAIN.C 12059 | -6/Archives | Build established: Scavenger-Mutant 12100 | -6/Archives | Discovered new exit (range 15) 12113 | -6/Archives | Unable to access archive contents 12130 | -6/Archives | Discovered new exit (range 15) 12170 | -6/Archives | Discovered new exit (range 16) 12205 | -6/Archives | Entered Hub_04(d) 12205 | -6/Hub_04(d) | Accompanied by 6 allies 12205 | -6/Hub_04(d) | Discovered new exit (range 10) 12535 | -6/Hub_04(d) | Discovered new exit (range 10) 12613 | -6/Hub_04(d) | Network Hub disabled 12789 | -6/Hub_04(d) | Spotted Lightning 12806 | -6/Hub_04(d) | Spotted Lightning 12807 | -6/Hub_04(d) | Spotted Lightning 12809 | -6/Hub_04(d) | Allies destroyed Lightning 12822 | -6/Hub_04(d) | Allies destroyed Lightning 12847 | -6/Hub_04(d) | Destroyed Lightning 12873 | -6/Hub_04(d) | Found Prototype Device 12873 | -6/Hub_04(d) | Identified Exp. Phase Shifter 12878 | -6/Hub_04(d) | Found Prototype Energy Cannon 12878 | -6/Hub_04(d) | Identified EMDS 12893 | -6/Hub_04(d) | Found Prototype Device 12893 | -6/Hub_04(d) | Identified EM Dispersion Field 12997 | -6/Hub_04(d) | Discovered new exit (range 5) 13000 | -6/Hub_04(d) | Spotted Lightning 13004 | -6/Hub_04(d) | Spotted Lightning 13004 | -6/Hub_04(d) | Entered Factory 13004 | -5/Factory | Accompanied by 1 ally 13004 | -5/Factory | Evolved 2 slots: Utility x2 13227 | -5/Factory | Repaired Mic. Fission Core 13345 | -5/Factory | Discovered new exit (range 15) 13450 | -5/Factory | Build established: Hacker-Mutant 13460 | -5/Factory | Incoming investigation squad redirected 13523 | -5/Factory | Discovered new exit (range 5) 13687 | -5/Factory | Entered Upper Caves 13755 | -5/Upper Caves | A Derelict revealed a hidden shortcut to "reach the base" 13763 | -5/Upper Caves | Entered Warlord 13798 | -5/Warlord | Discovered new exit (range 8) 13826 | -5/Warlord | System corruption cleaned by Quarantine Array 14227 | -5/Warlord | Met Warlord 14241 | -5/Warlord | Opened Warlord's prototype stash 14252 | -5/Warlord | Warlord's base attacked by MAIN.C 14263 | -5/Warlord | Found Prototype Device 14263 | -5/Warlord | Identified Thermal Barrier 14268 | -5/Warlord | Found Prototype Hackware 14268 | -5/Warlord | Identified System Mapper 14273 | -5/Warlord | Found Prototype Reactor 14273 | -5/Warlord | Identified Vortex Chain Reactor 14319 | -5/Warlord | Found Prototype Processor 14411 | -5/Warlord | Found Prototype Device 14411 | -5/Warlord | Identified Minesniffer Drone Bay 14442 | -5/Warlord | Learned Testing security intel 14442 | -5/Warlord | Learned Quarantine security intel 14442 | -5/Warlord | Learned Factory terminal intel 14442 | -5/Warlord | Learned Research fabricator intel 14444 | -5/Warlord | Learned Research stockpile data 14493 | -5/Warlord | Found Prototype Launcher 14493 | -5/Warlord | Identified Vortex Catalyst Activator 14498 | -5/Warlord | Found Prototype Piercing Weapon 14498 | -5/Warlord | Identified Vortex Lance 14502 | -5/Warlord | Found Prototype Energy Cannon 14502 | -5/Warlord | Identified Vortex Cannon 14506 | -5/Warlord | Found Prototype Energy Gun 14506 | -5/Warlord | Identified Vortex Rifle 14548 | -5/Warlord | Build established: Wizard-Mutant 14602 | -5/Warlord | Warlord forces counterattacked 14697 | -5/Warlord | Spotted Striker 14700 | -5/Warlord | Spotted Executioner 14822 | -5/Warlord | Entered Proximity Caves 14936 | -4/Proximity Caves | Attracted the attention of an 0b10 checkpoint 15079 | -4/Proximity Caves | Discovered new exit (range 14) 15153 | -4/Proximity Caves | Build established: Hacker-Mutant 15225 | -4/Proximity Caves | Learned 4 Research zone layouts 15288 | -4/Proximity Caves | Entered Factory 15288 | -4/Factory | Evolved 2 slots: Utility x2 15289 | -4/Factory | Loaded intel: 20 terminal locations 15458 | -4/Factory | Discovered new exit (range 31) 15462 | -4/Factory | Identified exit to Upper Caves 15586 | -4/Factory | Discovered new exit (range 49) 15735 | -4/Factory | Repaired Broken Hyp. Gauss Rifle 15835 | -4/Factory | Repaired Adv. Variable Charge Gun 15943 | -4/Factory | Sucked down chute 15943 | -4/Factory | Entered Waste 15974 | -4/Waste | Spotted C-40 Crusher 16002 | -4/Waste | Spotted C-40 Crusher 16019 | -4/Waste | Spotted C-40 Crusher 16020 | -4/Waste | Spotted C-40 Crusher 16022 | -4/Waste | Spotted C-40 Crusher 16046 | -4/Waste | Spotted C-40 Crusher 16064 | -4/Waste | Discovered new exit (range 14) 16079 | -4/Waste | Entered Factory 16126 | -4/Factory | Identified Exp. Core Analyzer 16160 | -4/Factory | Allied Derelicts emerged from ambush trap array 16199 | -4/Factory | Garrison activated, responded to threat 16252 | -4/Factory | Found Prototype Slashing Weapon 16252 | -4/Factory | Identified Molecular Scythe 16255 | -4/Factory | Found Molecular Scythe 16462 | -4/Factory | Fabricated Nuclear Pulse Array? 16501 | -4/Factory | Lost 7 parts (1p2n3u1w) 16613 | -4/Factory | Garrison activated, responded to threat 16651 | -4/Factory | Core integrity fell below 50% 16666 | -4/Factory | Lost 4 parts (3n1u) 16691 | -4/Factory | Crushed by falling debris 16692 | -4/Factory | System corruption reached 10% 16734 | -4/Factory | Released all parts (5) 16762 | -4/Factory | Lost 8 parts (2p2n3u1w) 16765 | -4/Factory | Spotted B-86 Titan 16793 | -4/Factory | Core integrity fell below 20% 16798 | -4/Factory | Destroyed by P-70 Sage with High-powered Shock Rifle Last Messages --------------- 16734_ Released Lgt. Nuclear Core. 16734_ Terminal disabled. 16735_ K-01 Serf collects debris. 16747_ Connecting with Terminal... 16747_ ALERT: Suspicious activity at Terminal F019. Dispatching Investigation squad. 16749_ Slammed into Y-64 Sentinel. 16750_ System corrupted: Matter fused (-9). 16750_ Slug penetrates Wall. 16753_ Penetrated by Slug. 16766_ 0BTNRK1:RRS=VWNHGE9HRO4HYC3#JYBWSAPQD 16769_ K-01 Serf cleans the Matter Pump. 16783_ Triggered Shock Trap. 16783_ The floor emits a surge of raw power. 16783_ System corrupted (+2). 16785_ System corrupted: Matter fused (-10). 16790_ Connecting with Terminal... 16792_ Slammed into S-27 Virus. 16793_ S-27 Virus destroyed. 16793_ Slammed into S-27 Virus. Map ----- +----------------------------------------------------+ | ?????????????????????????????????????????????????? | | ?????????????????????????????????????????????????? | | ?????????????????????????????????????????????????? | | ?????????????????????????????????????????????????? | | ?????????????????????????????????????????????????? | | ?????????????????????????????????????????????????? | | ?????????????????????????????????????????????????? | | ?????????????????????????????????????????????????? | | ?????????????????????????????????????????????????? | | ?????????????????????????????????????????????????? | | ???? ??????????????????????????????????????????? | | ? ?????????????????????????????????????????? | | #?????????????????????????????????????????? | | #?????????????????????????????????????????? | | #?????????????????????#####???????????????? | | """ #?????????????????????# * ???????????????? | | """ #?????????????????????# """?????????????? | | """ #?????????????????????#!! """ ????????????? | | #?????????????????????#!! """ #???????????? | | #?????????????????????# #???????????? | | ####+#############+##+# ! """ #???????????? | | "F"" ^ # """ #???????????? | | """" # """ #???????????? | | ^ s/ ! #???????????? | | k p ss# """ #???????????? | | p@ =s """ #???????????? | | ################"T########### """ #???????????? | | #??????????????#""#?????????# #???????????? | | #??????????????####?????????# ""#???????????? | | #???????????????????????????#! T"#???????????? | | #???????????????????????????# ""#???????????? | | ######### ??????????????????# ! #???????????? | | ]] ?????????????????#########???????????? | | ]] ?????????????????????????????????????? | | ]] ?#???????????????????????????????????? | | #???????????????????????????????????? | | """ """ """ #???????????????????????????????????? | | """ """ """ #???????????????????????????????????? | | """ """ """ #???????????????????????????????????? | | #???????????????????????????????????? | | """ """ """ #???????????????????????????????????? | | """ """ """ #???????????????????????????????????? | | """ """ """ #???????????????????????????????????? | | #???????????????????????????????????? | | #???????????????????????????????????? | | #???????????????????????????????????? | | ######### ####???????????????????????????????????? | | ????????# #??????????????????????????????????????? | | ????????# #?#######??????????????????????????????? | | ????????# #?# #??????????????????????????????? | +----------------------------------------------------+ Best States ------------- Heat Dissipation 69 Coolant Potential 50 Energy Generation 55 Energy Capacity 700 Matter Stores 300 Matter Capacity 300 Sight Range 16 Robot Scan Range 16 Terrain Scan Density 85 Armor Coverage 375 Resistance: EM 75 Phase Shifting 20 Evasion (%) 63 Core Analysis 15 Recoil Reduction 4 Offensive Hacking 44 Defensive Hacking 20 Item Schematics ----------------- Imp. Flight Unit | -7/Factory | Scanalyzed Combat Drone Bay | -7/Data Miner | Free Lgt. Regenerative Plating | -7/Data Miner | Free Cmb. Gravmag System | -7/Data Miner | Free Exp. Targeting Computer | -7/Data Miner | Free Tactical Coordination Suite | -7/Data Miner | Free Cloaking Device | -7/Data Miner | Free Mni. Smartbomb Launcher | -7/Data Miner | Free Kinetic Spear | -7/Data Miner | Free Exp. Sensor Array | -4/Factory | Hacked Hyp. Gauss Rifle | -4/Factory | Scanalyzed Exp. Core Analyzer | -4/Factory | Scanalyzed Nuclear Pulse Array | -4/Factory | Scanalyzed Robot Schematics ------------------ S-27 Virus | -7/Data Miner | Free G-50 Soldier | -7/Data Miner | Free G-67 Veteran | -7/Data Miner | Free L-41 Fighter | -7/Data Miner | Free X-72 Disruptor | -7/Data Miner | Free H-66 Slayer | -7/Data Miner | Free I-36 Angel | -7/Data Miner | Free Fabricated ------------ Imp. Flight Unit | x1 | -6/Factory Nuclear Pulse Array | x2 | -4/Factory Alien Tech Used ----------------- None Achievements -------------- Reappropriation Challenges ------------ None Game ------ Seed MediumRecoilProcessor Manual? 0 Play Time 03:13:43 Cumulative 124.0 hours Start 2020.12.14 @ 11:11:37 End 2020.12.14 @ 14:40:21 Sessions 3 Manual Loads 0 Difficulty Rogue Special Mode None Game No. 109 Rogue 109 Adventurer 0 Explorer 0 Win Type - Total 0 Types 0/0/0/0/0/0/0/0/0 Lore% 50 Gallery% 61 Achievement% 53 Wizard Run 0 Options --------- ASCII 0 Keyboard 1 Movement Numpad Keybinds 0 Fullscreen 1 Font 12/Terminus Map View 83x54 Tactical HUD 1 Map Filters NONE Filters NONE Steam 1 RUN: a8587316-035a-47dc-981a-9b4e8ed35bb4